fUSD/lending_fUSD_20260509
["ID","MTS","AMOUNT","RATE_DAILY","PERIOD"]
[421915176,1778332248000,-1037.98,0.00027397,2]
[421915183,1778332248000,-2365.275513,0.00027397,2]
[421915184,1778332248000,-2365.275513,0.00027397,2]
[421915182,1778332248000,-2365.275513,0.00027397,2]
[421915185,1778332248000,-2365.275513,0.00027397,2]
[421915186,1778332248000,-2365.275513,0.00027397,2]
[421915174,1778332248000,-151.0,0.00027397,2]
[421915216,1778332248000,-575.757224,0.00027397,2]
[421915241,1778332248000,-239.606861,0.00027397,2]
[421915222,1778332248000,-575.75722,0.00027397,2]
[421915255,1778332248000,-4146.68,0.000274,7]
[421915257,1778332248000,-245.77,0.000274,2]
[421915258,1778332248000,-245.77,0.000274,2]
[421915259,1778332248000,-245.77,0.000274,2]
[421915260,1778332248000,-245.77,0.000274,2]
[421915262,1778332248000,-1099.59,0.000275,2]
[421915261,1778332248000,-3040.0,0.00027463,7]
[421915267,1778332248000,-400.0,0.00027565,2]
[421915265,1778332248000,-400.0,0.00027565,2]
[421915268,1778332248000,-400.0,0.00027565,2]
[421915269,1778332248000,-400.0,0.00027565,2]
[421915263,1778332248000,-2000.0,0.0002754,2]
[421915264,1778332248000,-271.0,0.00027565,2]
[421915252,1778332248000,-3512.28,0.000274,7]
[421915271,1778332248000,-400.0,0.00027565,2]
[421915270,1778332248000,-400.0,0.00027565,2]
[421915272,1778332248000,-400.0,0.00027565,2]
[421915273,1778332248000,-400.0,0.00027565,2]
[421915274,1778332248000,-251.0,0.00027565,2]
[421915275,1778332248000,-162.0,0.00027616,14]
[421915278,1778332248000,-4224.15020531,0.00027704,2]
[421915284,1778332248000,-174.0,0.00027854,2]
[421915277,1778332248000,-500.0,0.00027689,15]
[421915276,1778332248000,-572.0,0.00027671,2]
[421915283,1778332248000,-197.0,0.0002785,2]
[421915280,1778332248000,-422.4,0.000278,2]
[421915281,1778332248000,-500.0,0.000278,7]
[421915223,1778332248000,-239.606861,0.00027397,2]
[421915266,1778332248000,-400.0,0.00027565,2]
[421915253,1778332248000,-160.0,0.000274,15]
[421915279,1778332248000,-844.71,0.000278,2]
[421915250,1778332248000,-822.505833,0.00027397,2]
[421915221,1778332248000,-575.757224,0.00027397,2]
[421915226,1778332248000,-239.606861,0.00027397,2]
[421915233,1778332248000,-239.606861,0.00027397,2]
[421915230,1778332248000,-239.606861,0.00027397,2]
[421915225,1778332248000,-239.606861,0.00027397,2]
[421915224,1778332248000,-239.606861,0.00027397,2]
[421915229,1778332248000,-239.606861,0.00027397,2]
[421915232,1778332248000,-239.606861,0.00027397,2]
[421915256,1778332248000,-245.77,0.000274,2]
[421915228,1778332248000,-239.606861,0.00027397,2]
[421915231,1778332248000,-239.606861,0.00027397,2]
[421915235,1778332248000,-239.606861,0.00027397,2]
[421915234,1778332248000,-239.606861,0.00027397,2]
[421915238,1778332248000,-239.606861,0.00027397,2]
[421915227,1778332248000,-239.606861,0.00027397,2]
[421915282,1778332248000,-150.0,0.00027834,2]
[421915254,1778332248000,-136892.48,0.000274,7]
[421915240,1778332248000,-239.606861,0.00027397,2]
[421915251,1778332248000,-822.505833,0.00027397,2]
[421915249,1778332248000,-822.505833,0.00027397,2]
[421915247,1778332248000,-822.505833,0.00027397,2]
[421915243,1778332248000,-822.505833,0.00027397,2]
[421915248,1778332248000,-822.505833,0.00027397,2]
[421915242,1778332248000,-239.606865,0.00027397,2]
[421915237,1778332248000,-239.606861,0.00027397,2]
[421915239,1778332248000,-239.606861,0.00027397,2]
[421915244,1778332248000,-822.505833,0.00027397,2]
[421915236,1778332248000,-239.606861,0.00027397,2]
[421915246,1778332248000,-822.505833,0.00027397,2]
[421915245,1778332248000,-822.505833,0.00027397,2]
[421915324,1778332249000,-550.0,0.00028359,2]
[421915331,1778332249000,-550.0,0.00028359,2]
[421915326,1778332249000,-550.0,0.00028359,2]
[421915329,1778332249000,-550.0,0.00028359,2]
[421915325,1778332249000,-550.0,0.00028359,2]
[421915315,1778332249000,-750.0,0.00028109,2]
[421915321,1778332249000,-1653.1,0.00028267,2]
[421915320,1778332249000,-52192.4717156,0.00028205,2]
[421915322,1778332249000,-3512.28,0.000283,7]
[421915319,1778332249000,-572.0,0.00028205,3]
[421915317,1778332249000,-899.561,0.0002817,2]
[421915323,1778332249000,-1878.0,0.00028359,2]
[421915327,1778332249000,-550.0,0.00028359,2]
[421915345,1778332249000,-283.05,0.0002862,7]
[421915335,1778332249000,-4146.68,0.000284,7]
[421915328,1778332249000,-550.0,0.00028359,2]
[421915330,1778332249000,-550.0,0.00028359,2]
[421915333,1778332249000,-2634.9,0.000284,14]
[421915334,1778332249000,-160.0,0.000284,19]
[421915336,1778332249000,-175.42,0.00028493,2]
[421915337,1778332249000,-238.0,0.00028512,2]
[421915338,1778332249000,-500.0,0.0002852,16]
[421915346,1778332249000,-2831.62,0.0002863,2]
[421915342,1778332249000,-136892.48,0.000286,7]
[421915339,1778332249000,-282.42,0.00028585,2]
[421915347,1778332249000,-2722.62,0.0002863,2]
[421915318,1778332249000,-830.58,0.000282,7]
[421915332,1778332249000,-382.0,0.00028359,2]
[421915316,1778332249000,-374.0,0.00028109,2]
[421915298,1778332249000,-657.85,0.00028,2]
[421915314,1778332249000,-750.0,0.00028109,2]
[421915340,1778332249000,-283.05,0.00028586,2]
[421915285,1778332249000,-339.0,0.00027876,2]
[421915286,1778332249000,-4146.68,0.000279,7]
[421915288,1778332249000,-184.0,0.00027929,2]
[421915287,1778332249000,-1683.83,0.00027917,60]
[421915289,1778332249000,-762.62039339,0.00027945,5]
[421915290,1778332249000,-23305.53817536,0.00028,2]
[421915291,1778332249000,-160.0,0.00028,2]
[421915292,1778332249000,-643.0,0.00028,2]
[421915293,1778332249000,-136892.48,0.00028,7]
[421915296,1778332249000,-657.85,0.00028,2]
[421915295,1778332249000,-657.85,0.00028,2]
[421915294,1778332249000,-600.0,0.00028,2]
[421915313,1778332249000,-750.0,0.00028109,2]
[421915297,1778332249000,-657.85,0.00028,2]
[421915300,1778332249000,-657.85,0.00028,2]
[421915301,1778332249000,-657.85,0.00028,2]
[421915303,1778332249000,-657.85,0.00028,2]
[421915306,1778332249000,-207.0,0.0002808,2]
[421915304,1778332249000,-657.85,0.00028,2]
[421915307,1778332249000,-160.0,0.000281,17]
[421915310,1778332249000,-2000.0,0.00028109,2]
[421915308,1778332249000,-2000.0,0.00028109,2]
[421915305,1778332249000,-160.0,0.00028049,2]
[421915302,1778332249000,-657.85,0.00028,2]
[421915309,1778332249000,-2000.0,0.00028109,2]
[421915311,1778332249000,-2000.0,0.00028109,2]
[421915312,1778332249000,-1247.0,0.00028109,2]
[421915299,1778332249000,-657.85,0.00028,2]
[421915341,1778332249000,-642.09,0.0002859,60]
[421915352,1778332249000,-282.42,0.00028687,2]
[421915344,1778332249000,-282.42,0.00028619,7]
[421915395,1778332249000,-150.0,0.00028834,2]
[421915386,1778332249000,-2722.62,0.0002882,2]
[421915380,1778332249000,-400.0,0.0002881,2]
[421915382,1778332249000,-226.0,0.0002881,2]
[421915397,1778332249000,-2831.62,0.00028852,7]
[421915401,1778332249000,-282.42,0.00028857,30]
[421915399,1778332249000,-2722.62,0.00028852,7]
[421915404,1778332249000,-283.05,0.00028858,30]
[421915420,1778332249000,-2722.62,0.00028915,2]
[421915412,1778332249000,-2722.62,0.00028883,30]
[421915416,1778332249000,-283.05,0.00028892,2]
[421915418,1778332249000,-4146.68,0.000289,7]
[421915414,1778332249000,-282.42,0.00028891,2]
[421915384,1778332249000,-2831.62,0.0002882,2]
[421915419,1778332249000,-2831.62,0.00028915,2]
[421915408,1778332249000,-849.0008329,0.00028875,2]
[421915409,1778332249000,-2831.62,0.00028883,30]
[421915343,1778332249000,-1059.90456359,0.000286,2]
[421915421,1778332249000,-1100.0,0.00028921,7]
[421915425,1778332249000,-2722.62,0.00028947,7]
[421915423,1778332249000,-283.05,0.00028926,7]
[421915426,1778332249000,-282.42,0.0002896,30]
[421915427,1778332249000,-283.05,0.0002896,30]
[421915429,1778332249000,-2722.62,0.00028979,30]
[421915430,1778332249000,-282.42,0.00028994,2]
[421915424,1778332249000,-2831.62,0.00028947,7]
[421915428,1778332249000,-2831.62,0.00028979,30]
[421915431,1778332249000,-283.05,0.00028994,2]
[421915406,1778332249000,-18417.6286969,0.00028875,2]
[421915393,1778332249000,-163.0,0.00028834,3]
[421915422,1778332249000,-282.42,0.00028925,7]
[421915391,1778332249000,-283.05,0.00028824,7]
[421915378,1778332249000,-400.0,0.0002881,2]
[421915349,1778332249000,-283.05,0.00028654,30]
[421915350,1778332249000,-2831.62,0.00028661,7]
[421915348,1778332249000,-282.42,0.00028653,30]
[421915354,1778332249000,-2831.62,0.00028693,30]
[421915351,1778332249000,-2722.62,0.00028661,7]
[421915356,1778332249000,-282.42,0.00028721,7]
[421915360,1778332249000,-572.0,0.00028739,3]
[421915358,1778332249000,-2831.62,0.00028725,2]
[421915355,1778332249000,-2722.62,0.00028693,30]
[421915359,1778332249000,-2722.62,0.00028725,2]
[421915357,1778332249000,-283.05,0.00028722,7]
[421915361,1778332249000,-282.42,0.00028755,30]
[421915362,1778332249000,-2831.62,0.00028756,7]
[421915353,1778332249000,-283.05,0.00028688,2]
[421915364,1778332249000,-283.05,0.00028756,30]
[421915388,1778332249000,-282.42,0.00028823,7]
[421915363,1778332249000,-2722.62,0.00028756,7]
[421915375,1778332249000,-400.0,0.0002881,2]
[421915376,1778332249000,-400.0,0.0002881,2]
[421915373,1778332249000,-400.0,0.0002881,2]
[421915365,1778332249000,-5373.85442517,0.00028767,30]
[421915371,1778332249000,-400.0,0.0002881,2]
[421915372,1778332249000,-400.0,0.0002881,2]
[421915370,1778332249000,-400.0,0.0002881,2]
[421915368,1778332249000,-282.42,0.00028789,2]
[421915367,1778332249000,-2722.62,0.00028788,30]
[421915366,1778332249000,-2831.62,0.00028788,30]
[421915369,1778332249000,-283.05,0.0002879,2]
[421915455,1778332250000,-282.42,0.0002913,7]
[421915461,1778332250000,-2831.62,0.00029169,30]
[421915453,1778332250000,-2831.62,0.00029105,2]
[421915459,1778332250000,-282.42,0.00029164,30]
[421915456,1778332250000,-283.05,0.0002913,7]
[421915454,1778332250000,-2722.62,0.00029105,2]
[421915458,1778332250000,-2722.62,0.00029137,7]
[421915460,1778332250000,-283.05,0.00029164,30]
[421915469,1778332250000,-2831.8,0.00029232,7]
[421915462,1778332250000,-2722.62,0.00029169,30]
[421915467,1778332250000,-2831.62,0.00029201,2]
[421915465,1778332250000,-2634.9,0.000292,14]
[421915468,1778332250000,-2722.62,0.00029201,2]
[421915464,1778332250000,-283.05,0.00029198,2]
[421915466,1778332250000,-3512.28,0.000292,7]
[421915451,1778332250000,-160.0,0.000291,21]
[421915471,1778332250000,-2722.81,0.00029232,7]
[421915463,1778332250000,-282.42,0.00029198,2]
[421915457,1778332250000,-2831.62,0.00029137,7]
[421915437,1778332250000,-2831.62,0.0002901,2]
[421915450,1778332250000,-283.05,0.00029096,2]
[421915472,1778332250000,-283.11,0.00029232,7]
[421915432,1778332250000,-162.0,0.00028997,14]
[421915433,1778332250000,-600.0,0.00028999,2]
[421915434,1778332250000,-1370.08063428,0.00029,2]
[421915436,1778332250000,-3141.51676407,0.00029,7]
[421915435,1778332250000,-508.8176807,0.00029,2]
[421915439,1778332250000,-282.42,0.00029028,7]
[421915441,1778332250000,-54914.4666664,0.00029031,2]
[421915452,1778332250000,-136892.48,0.000291,7]
[421915438,1778332250000,-2722.62,0.0002901,2]
[421915442,1778332250000,-11190.2207079,0.00029031,2]
[421915444,1778332250000,-2722.62,0.00029042,7]
[421915443,1778332250000,-2831.62,0.00029042,7]
[421915445,1778332250000,-282.42,0.00029062,30]
[421915446,1778332250000,-283.05,0.00029062,30]
[421915447,1778332250000,-2831.62,0.00029074,30]
[421915449,1778332250000,-282.42,0.00029096,2]
[421915448,1778332250000,-2722.62,0.00029074,30]
[421915440,1778332250000,-283.05,0.00029028,7]
[421915470,1778332250000,-282.43,0.00029232,7]
[421915496,1778332250000,-200.0,0.0003,11]
[421915474,1778332250000,-3821.40020376,0.00029305,30]
[421915514,1778332250000,-426447.22539843,0.0003013,2]
[421915495,1778332250000,-151.0,0.0003,2]
[421915498,1778332250000,-265.15,0.0003,11]
[421915506,1778332250000,-200.0,0.0003,2]
[421915507,1778332250000,-1004.14417065,0.0003,14]
[421915500,1778332250000,-2634.9,0.0003,14]
[421915503,1778332250000,-489.67655701,0.0003,60]
[421915504,1778332250000,-108752.68292164,0.0003,5]
[421915501,1778332250000,-2000.0,0.0003,3]
[421915502,1778332250000,-180.93883686,0.0003,30]
[421915509,1778332250000,-545.16948576,0.0003003,2]
[421915508,1778332250000,-200.0,0.0003,2]
[421915505,1778332250000,-200.0,0.0003,2]
[421915510,1778332250000,-4224.15020531,0.0003003,2]
[421915512,1778332250000,-136892.48,0.000301,7]
[421915511,1778332250000,-160.0,0.000301,25]
[421915513,1778332250000,-204.47170257,0.0003013,31]
[421915499,1778332250000,-1900.0,0.0003,2]
[421915492,1778332250000,-942.69584253,0.0003,4]
[421915488,1778332250000,-1683.83,0.00029896,60]
[421915490,1778332250000,-4146.68,0.000299,7]
[421915475,1778332250000,-3821.40020376,0.00029305,30]
[421915476,1778332250000,-500.0,0.00029375,18]
[421915485,1778332250000,-572.0,0.00029807,4]
[421915477,1778332250000,-160.0,0.000294,22]
[421915478,1778332250000,-4146.68,0.000294,7]
[421915481,1778332250000,-150.0,0.00029534,2]
[421915479,1778332250000,-400.0,0.0002947,2]
[421915482,1778332250000,-136892.48,0.000296,7]
[421915473,1778332250000,-572.0,0.00029273,4]
[421915480,1778332250000,-196.58,0.00029526,14]
[421915483,1778332250000,-3000.0,0.00029798,2]
[421915486,1778332250000,-150.0,0.00029834,2]
[421915491,1778332250000,-200.0,0.000299,10]
[421915487,1778332250000,-152.0,0.00029859,4]
[421915497,1778332250000,-1912.82982443,0.0003,3]
[421915493,1778332250000,-8190.67,0.0003,5]
[421915489,1778332250000,-32454.1542201,0.000299,2]
[421915494,1778332250000,-908.78626477,0.0003,10]
[421915484,1778332250000,-830.58,0.000298,7]
[421915515,1778332251000,-573254.58460157,0.0003013,2]
[421915517,1778332251000,-707.3898016,0.0001617,2]
[421915516,1778332251000,-1902170.96486837,0.0003013,7]
[421915538,1778332254000,-4681.83546872,0.00030137,30]
[421915548,1778332254000,-1653.1,0.00030239,2]
[421915540,1778332254000,-1368.8669458,0.00030137,120]
[421915549,1778332254000,-500.0,0.00030257,20]
[421915544,1778332254000,-211.72103563,0.00030137,2]
[421915543,1778332254000,-150.0,0.00030137,2]
[421915541,1778332254000,-951.94334729,0.00030137,120]
[421915539,1778332254000,-2686.92721259,0.00030137,30]
[421915518,1778332254000,-5339.6101984,0.0001617,2]
[421915546,1778332254000,-3512.28,0.000302,7]
[421915545,1778332254000,-1163.40101201,0.00030137,2]
[421915550,1778332254000,-572.0,0.00030341,5]
[421915560,1778332254000,-150.0,0.00030834,2]
[421915562,1778332254000,-156.0,0.00030885,30]
[421915554,1778332254000,-418.75063302,0.00030521,2]
[421915555,1778332254000,-136892.48,0.000306,7]
[421915542,1778332254000,-333.0,0.00030137,120]
[421915547,1778332254000,-519.0,0.00030237,120]
[421915537,1778332254000,-192.6678052,0.00030137,120]
[421915526,1778332254000,-822.505833,0.00027397,2]
[421915519,1778332254000,-6047.0,0.0001917,2]
[421915520,1778332254000,-822.505833,0.00027397,2]
[421915524,1778332254000,-822.505833,0.00027397,2]
[421915522,1778332254000,-822.505833,0.00027397,2]
[421915523,1778332254000,-822.505833,0.00027397,2]
[421915521,1778332254000,-822.505833,0.00027397,2]
[421915527,1778332254000,-97528.73499927,0.0003013,7]
[421915531,1778332254000,-709.0459289,0.00030137,2]
[421915525,1778332254000,-822.505833,0.00027397,2]
[421915535,1778332254000,-200.0,0.00030137,2]
[421915533,1778332254000,-248.79,0.00030137,2]
[421915532,1778332254000,-1037.98,0.00030137,2]
[421915534,1778332254000,-394.61,0.00030137,2]
[421915529,1778332254000,-151.0,0.00030136,2]
[421915536,1778332254000,-3214.51298033,0.00030137,120]
[421915528,1778332254000,-87829.0,0.0003013,2]
[421915530,1778332254000,-240.66864564,0.00030136,2]
[421915561,1778332254000,-572.0,0.00030875,6]
[421915552,1778332254000,-4146.68,0.000304,7]
[421915553,1778332254000,-193.11,0.00030411,120]
[421915580,1778332254000,-500.0,0.00031164,21]
[421915577,1778332254000,-3725.4,0.00031044,120]
[421915589,1778332254000,-11645.7145724,0.00031368,2]
[421915588,1778332254000,-182.29771831,0.000313,2]
[421915583,1778332254000,-2401.4637842,0.000313,2]
[421915587,1778332254000,-182.29771831,0.000313,2]
[421915582,1778332254000,-865.0,0.00031226,120]
[421915584,1778332254000,-2401.4637842,0.000313,2]
[421915586,1778332254000,-182.29771834,0.000313,2]
[421915585,1778332254000,-2401.4637842,0.000313,2]
[421915594,1778332254000,-1000.0,0.000315,7]
[421915593,1778332254000,-2634.9,0.000315,14]
[421915592,1778332254000,-572.0,0.00031409,6]
[421915595,1778332254000,-1099.59,0.000315,30]
[421915596,1778332254000,-1179.71,0.0003162,7]
[421915591,1778332254000,-160.0,0.000314,30]
[421915558,1778332254000,-1232.6898846,0.00030804,44]
[421915579,1778332254000,-160.0,0.000311,29]
[421915581,1778332254000,-3512.28,0.000312,7]
[421915590,1778332254000,-171.2242287,0.00031368,2]
[421915572,1778332254000,-4392.0,0.00030947,30]
[421915559,1778332254000,-333.0,0.00030822,120]
[421915578,1778332254000,-200.0,0.00031096,2]
[421915551,1778332254000,-160.0,0.000304,26]
[421915557,1778332254000,-2634.9,0.000308,14]
[421915563,1778332254000,-156.0,0.00030885,30]
[421915566,1778332254000,-155.0,0.00030894,30]
[421915564,1778332254000,-1051.0,0.00030885,30]
[421915574,1778332254000,-279.04159291,0.00031,2]
[421915556,1778332254000,-312.0,0.00030621,120]
[421915568,1778332254000,-354.0,0.00030942,30]
[421915575,1778332254000,-236.72799639,0.00031,2]
[421915565,1778332254000,-271.0,0.00030894,30]
[421915569,1778332254000,-217.0,0.00030942,30]
[421915571,1778332254000,-2195.0,0.00030947,30]
[421915570,1778332254000,-201.0,0.00030947,30]
[421915576,1778332254000,-150.0,0.00031011,2]
[421915573,1778332254000,-14264.27590126,0.00031,5]
[421915567,1778332254000,-374.0,0.00030894,30]
[421915641,1778332255000,-199.51250758,0.00032,120]
[421915636,1778332255000,-980.0,0.00032,12]
[421915633,1778332255000,-199.0,0.00031967,2]
[421915634,1778332255000,-199.0,0.00031967,2]
[421915625,1778332255000,-199.0,0.00031967,2]
[421915630,1778332255000,-199.0,0.00031967,2]
[421915627,1778332255000,-199.0,0.00031967,2]
[421915626,1778332255000,-199.0,0.00031967,2]
[421915638,1778332255000,-136892.48,0.00032,7]
[421915629,1778332255000,-199.0,0.00031967,2]
[421915632,1778332255000,-199.0,0.00031967,2]
[421915643,1778332255000,-205.8835862,0.00032,120]
[421915654,1778332255000,-312.0,0.00032152,120]
[421915637,1778332255000,-10000.0,0.00032,10]
[421915642,1778332255000,-365.30101854,0.00032,120]
[421915639,1778332255000,-416.75417843,0.00032,120]
[421915640,1778332255000,-505.62715358,0.00032,120]
[421915652,1778332255000,-4109.5284407,0.00032112,2]
[421915653,1778332255000,-189.4376918,0.00032112,2]
[421915651,1778332255000,-160.0,0.000321,33]
[421915649,1778332255000,-200.0,0.00032055,2]
[421915656,1778332255000,-230.53485716,0.0003224,2]
[421915646,1778332255000,-168.33046933,0.00032,120]
[421915628,1778332255000,-199.0,0.00031967,2]
[421915635,1778332255000,-314.69518012,0.00032,3]
[421915623,1778332255000,-2195.0,0.00031947,30]
[421915614,1778332255000,-156.0,0.00031885,30]
[421915631,1778332255000,-199.0,0.00031967,2]
[421915602,1778332255000,-1000.0,0.0003177,2]
[421915600,1778332255000,-4779.77789529,0.00031754,2]
[421915597,1778332255000,-2023.2447,0.00031644,2]
[421915599,1778332255000,-519.0,0.00031749,120]
[421915601,1778332255000,-1000.0,0.0003177,2]
[421915598,1778332255000,-333.0,0.00031726,120]
[421915604,1778332255000,-1109.14228853,0.0003177,2]
[421915615,1778332255000,-1051.0,0.00031885,30]
[421915616,1778332255000,-271.0,0.00031894,30]
[421915605,1778332255000,-1000.0,0.0003179,2]
[421915609,1778332255000,-1000.0,0.0003179,2]
[421915613,1778332255000,-156.0,0.00031885,30]
[421915608,1778332255000,-1000.0,0.0003179,2]
[421915603,1778332255000,-1000.0,0.0003177,2]
[421915607,1778332255000,-1000.0,0.0003179,2]
[421915610,1778332255000,-150.0,0.00031834,2]
[421915611,1778332255000,-1683.83,0.00031875,90]
[421915612,1778332255000,-642.09,0.00031885,60]
[421915606,1778332255000,-1000.0,0.0003179,2]
[421915617,1778332255000,-155.0,0.00031894,30]
[421915619,1778332255000,-354.0,0.00031942,30]
[421915645,1778332255000,-258.72514872,0.00032,120]
[421915621,1778332255000,-572.0,0.00031943,7]
[421915622,1778332255000,-201.0,0.00031947,30]
[421915620,1778332255000,-217.0,0.00031942,30]
[421915624,1778332255000,-4392.0,0.00031947,30]
[421915644,1778332255000,-259.90963072,0.00032,120]
[421915618,1778332255000,-374.0,0.00031894,30]
[421915647,1778332255000,-1912.34921797,0.00032,120]
[421915685,1778332255000,-448.43651,0.00032877,7]
[421915686,1778332255000,-448.43651,0.00032877,7]
[421915689,1778332255000,-448.43651,0.00032877,7]
[421915687,1778332255000,-448.43651,0.00032877,7]
[421915691,1778332255000,-448.43651,0.00032877,7]
[421915688,1778332255000,-448.43651,0.00032877,7]
[421915690,1778332255000,-448.43651,0.00032877,7]
[421915692,1778332255000,-448.436505,0.00032877,7]
[421915696,1778332255000,-151.0,0.00032877,7]
[421915704,1778332255000,-151.0,0.00032877,7]
[421915693,1778332255000,-151.0,0.00032877,7]
[421915703,1778332255000,-151.0,0.00032877,7]
[421915698,1778332255000,-151.0,0.00032877,7]
[421915700,1778332255000,-151.0,0.00032877,7]
[421915697,1778332255000,-151.0,0.00032877,7]
[421915694,1778332255000,-151.0,0.00032877,7]
[421915695,1778332255000,-151.0,0.00032877,7]
[421915702,1778332255000,-151.0,0.00032877,7]
[421915699,1778332255000,-151.0,0.00032877,7]
[421915701,1778332255000,-151.0,0.00032877,7]
[421915706,1778332255000,-151.0,0.00032877,7]
[421915705,1778332255000,-151.0,0.00032877,7]
[421915707,1778332255000,-151.0,0.00032877,7]
[421915708,1778332255000,-151.0,0.00032877,7]
[421915709,1778332255000,-151.0,0.00032877,7]
[421915683,1778332255000,-448.43651,0.00032877,7]
[421915684,1778332255000,-448.43651,0.00032877,7]
[421915655,1778332255000,-1653.1,0.0003221,5]
[421915678,1778332255000,-448.43651,0.00032877,7]
[421915648,1778332255000,-208.0536425,0.00032,120]
[421915650,1778332255000,-500.0,0.00032099,23]
[421915657,1778332255000,-12253.0737417,0.00032286,2]
[421915658,1778332255000,-2496.8757386,0.00032286,2]
[421915669,1778332255000,-4902.43533345,0.000328,2]
[421915668,1778332255000,-865.0,0.00032787,120]
[421915659,1778332255000,-907.3266451,0.000323,2]
[421915664,1778332255000,-325.2305134,0.00032487,51]
[421915666,1778332255000,-150.0,0.00032562,2]
[421915661,1778332255000,-3512.28,0.000324,7]
[421915663,1778332255000,-572.0,0.00032477,7]
[421915665,1778332255000,-2634.9,0.000325,14]
[421915667,1778332255000,-822.95,0.0003261,30]
[421915662,1778332255000,-160.0,0.000324,34]
[421915660,1778332255000,-301.75050137,0.00032305,2]
[421915680,1778332255000,-448.43651,0.00032877,7]
[421915679,1778332255000,-448.43651,0.00032877,7]
[421915676,1778332255000,-448.43651,0.00032877,7]
[421915672,1778332255000,-1037.98,0.00032877,2]
[421915674,1778332255000,-448.43651,0.00032877,7]
[421915675,1778332255000,-448.43651,0.00032877,7]
[421915677,1778332255000,-448.43651,0.00032877,7]
[421915673,1778332255000,-448.43651,0.00032877,7]
[421915670,1778332255000,-150.0,0.00032834,2]
[421915682,1778332255000,-448.43651,0.00032877,7]
[421915671,1778332255000,-349.48,0.00032877,2]
[421915681,1778332255000,-448.43651,0.00032877,7]
[421915746,1778332256000,-199.51250758,0.00033,120]
[421915750,1778332256000,-168.33046933,0.00033,120]
[421915751,1778332256000,-1912.34921797,0.00033,120]
[421915752,1778332256000,-572.0,0.00033011,8]
[421915747,1778332256000,-365.30101854,0.00033,120]
[421915749,1778332256000,-258.72514872,0.00033,120]
[421915745,1778332256000,-505.62715358,0.00033,120]
[421915744,1778332256000,-416.75417843,0.00033,120]
[421915741,1778332256000,-4146.68,0.00033,30]
[421915748,1778332256000,-259.90963072,0.00033,120]
[421915742,1778332256000,-218.18,0.00033,14]
[421915743,1778332256000,-570.692337,0.00033,14]
[421915764,1778332256000,-500.0,0.000335,2]
[421915763,1778332256000,-3512.28,0.000335,30]
[421915755,1778332256000,-500.0,0.000331,2]
[421915759,1778332256000,-519.0,0.00033336,120]
[421915753,1778332256000,-350.0,0.00033014,2]
[421915761,1778332256000,-5000.0,0.000335,7]
[421915754,1778332256000,-500.0,0.00033062,25]
[421915757,1778332256000,-461.94485924,0.00033118,2]
[421915762,1778332256000,-738.99910779,0.000335,2]
[421915756,1778332256000,-160.0,0.000331,37]
[421915775,1778332256000,-271.0,0.00033894,30]
[421915769,1778332256000,-312.0,0.0003376,120]
[421915733,1778332256000,-2195.0,0.00032947,30]
[421915758,1778332256000,-5648.1,0.00033333,14]